bitfinex-derivatives/quotes_ETHF0:USTF0_20250910
["timestamp","ask_amount","ask_price","bid_price","bid_amount"]
[1757508467400,0.9079,4379.2,4378.9,3.8384]
[1757508467588,0.9079,4378.4,4377.9,0.6306]
[1757508467794,0.4577,4377.7,4377.6,1.5087]
[1757508468602,0.9079,4377.7,4377.6,1.5087]
[1757508469894,1.5565,4377.7,4377.6,1.5087]
[1757508470091,0.9079,4377.7,4377.0,0.8833]
[1757508470294,1.5565,4376.4,4376.3,3.2078]
[1757508470494,1.1619,4376.4,4375.8,0.6306]
[1757508470703,3.2078,4376.7,4375.7,3.2078]
[1757508470704,3.2078,4376.7,4376.5,0.2527]
[1757508470903,0.254,4376.6,4376.5,1.7614]
[1757508472003,3.2078,4376.7,4376.5,1.7614]
[1757508472198,3.2078,4376.7,4376.6,1.5087]
[1757508472400,0.6486,4377.5,4376.6,1.5087]
[1757508472600,0.52822765,4377.4,4376.7,0.6306]
[1757508472802,1.23992765,4377.3,4377.2,1.5087]
[1757508473005,2.33872765,4377.3,4377.0,0.2527]
[1757508473202,0.9079,4377.1,4377.0,0.8833]
[1757508473500,4.1157,4377.1,4377.0,1.7614]
[1757508473689,0.42103976,4378.5,4377.5,0.4242]
[1757508473690,3.6655,4377.6,4377.5,0.4242]
[1757508473894,5.54622852,4377.6,4377.5,1.0548]
[1757508474091,5.24674001,4377.6,4377.0,0.2527]
[1757508474290,3.69024001,4377.6,4377.0,0.2527]
[1757508474500,1.5565,4377.1,4376.5,0.2527]
[1757508474701,0.4577,4376.7,4376.6,1.5087]
[1757508474912,1.8105,4376.7,4376.6,1.5087]
[1757508475097,1.1619,4376.7,4376.6,1.5087]
[1757508475498,0.254,4376.7,4376.6,1.5087]
[1757508475895,0.6486,4377.4,4376.7,0.6306]
[1757508476111,1.5565,4377.4,4377.3,1.0548]
[1757508476603,1.1619,4377.4,4377.3,1.0548]
[1757508477200,0.6486,4377.3,4377.1,0.6306]
[1757508477397,1.5565,4377.2,4376.5,0.2527]
[1757508477603,3.2078,4377.1,4376.5,0.2527]
[1757508477907,1.8095,4377.0,4376.9,1.0548]
[1757508478107,0.9079,4376.7,4376.6,0.6306]
[1757508478302,0.9079,4376.7,4376.6,1.5087]
[1757508478503,1.5565,4376.7,4376.6,1.5087]
[1757508479205,0.9079,4376.7,4376.6,1.5087]
[1757508479405,0.4577,4376.7,4376.6,1.5087]
[1757508480404,0.4577,4376.7,4376.5,0.2527]
[1757508480405,3.6655,4377.1,4377.0,1.1308]
[1757508480605,0.7107,4377.1,4377.0,1.7614]
[1757508481007,1.1609,4377.1,4377.0,1.7614]
[1757508481400,0.4577,4377.1,4377.0,1.7614]
[1757508481600,0.253,4377.1,4377.0,1.7614]
[1757508482003,3.2078,4377.6,4377.0,1.1308]
[1757508482313,0.7107,4377.5,4377.4,1.5087]
[1757508482511,0.4577,4377.5,4377.4,1.5087]
[1757508482906,3.2078,4377.6,4377.5,0.2527]
[1757508483104,3.4608,4377.6,4377.5,1.7614]
[1757508483509,3.9185,4377.6,4377.5,1.7614]
[1757508483708,4.3687,4377.6,4377.5,1.7614]
[1757508484310,0.4577,4377.1,4377.0,1.7614]
[1757508484614,1.1609,4377.1,4377.0,1.7614]
[1757508484908,1.8095,4377.1,4377.0,1.5087]
[1757508485105,0.4577,4376.6,4376.5,1.3075]
[1757508485301,0.4577,4376.6,4376.5,1.7614]
[1757508485810,3.2078,4377.1,4377.0,1.7614]
[1757508486014,3.2078,4377.6,4377.5,1.7614]
[1757508486212,3.4608,4377.6,4377.5,1.7614]
[1757508486413,3.4608,4377.6,4377.5,0.8833]
[1757508488511,3.2078,4377.6,4377.5,0.8833]
[1757508489812,3.8564,4377.6,4377.5,0.6306]
[1757508490518,3.2078,4377.6,4377.0,0.6306]
[1757508490807,0.253,4377.5,4377.1,0.6306]
[1757508491715,0.6486,4377.4,4377.1,0.6306]
[1757508491916,0.253,4377.5,4377.1,0.6306]
[1757508492106,0.6486,4377.4,4377.1,0.6306]
[1757508492303,0.6486,4377.4,4377.0,0.2527]
[1757508492812,0.6486,4377.4,4377.0,0.8833]
[1757508493012,0.253,4377.5,4377.0,0.2527]
[1757508493702,0.253,4377.5,4377.1,0.6306]
[1757508494303,0.253,4377.5,4377.0,0.2527]
[1757508494709,0.253,4377.5,4377.1,0.6306]
[1757508494909,0.9016,4377.5,4377.1,0.6306]
[1757508495216,0.9016,4377.5,4377.0,0.2527]
[1757508495412,0.6486,4378.0,4377.6,0.6306]
[1757508495609,0.7107,4377.9,4377.8,0.4242]
[1757508495912,0.7107,4377.9,4377.8,1.5087]
[1757508496311,1.1609,4377.9,4377.8,1.5087]
[1757508497218,2.29428224,4377.9,4377.8,1.0548]
[1757508497513,1.4912,4377.7,4377.1,3.2078]
[1757508497821,0.4414,4377.3,4377.2,1.0938]
[1757508498009,0.6934,4377.3,4377.2,1.5151]
[1757508498209,3.2078,4378.1,4377.2,1.5151]
[1757508498411,3.2078,4378.1,4377.1,3.2078]
[1757508498412,0.97144192,4378.0,4377.9,1.5151]
[1757508498615,0.53004192,4378.0,4377.9,1.5151]
[1757508498815,0.78204192,4378.0,4377.9,1.5151]
[1757508499415,0.252,4378.0,4377.9,1.5151]
[1757508500117,3.2078,4378.1,4378.0,1.7817]
[1757508500417,3.4598,4378.1,4378.0,1.7817]
[1757508501206,4.951,4378.1,4377.5,0.2666]
[1757508501408,4.3476,4378.1,4377.5,0.2666]
[1757508501611,0.8878,4377.7,4377.6,0.6448]
[1757508501919,1.7432,4377.7,4377.6,0.6448]
[1757508502119,1.7432,4377.7,4377.6,1.0938]
[1757508502521,1.7432,4377.7,4377.1,0.6448]
[1757508503117,1.7432,4377.7,4377.6,0.449]
[1757508503417,3.2078,4378.1,4377.6,1.5151]
[1757508503418,3.8112,4378.1,4377.6,1.5151]
[1757508503624,0.252,4377.7,4377.6,1.5151]
[1757508505020,1.7432,4377.7,4377.6,1.0938]
[1757508505228,2.27324231,4377.7,4377.1,0.6448]
[1757508505524,1.4912,4377.2,4377.1,1.0938]
[1757508505721,1.7432,4377.2,4377.1,1.0938]
[1757508505918,1.1398,4377.2,4377.1,1.0938]
[1757508506317,1.1398,4377.2,4377.1,1.5151]
[1757508508925,1.7432,4377.2,4377.1,1.0938]
[1757508509118,1.7432,4377.2,4376.6,0.6448]
[1757508509119,2.27354227,4377.2,4376.6,0.6448]
[1757508509318,1.7432,4377.2,4376.6,0.6448]
[1757508510120,1.4912,4376.7,4376.2,0.6448]
[1757508510327,4.699,4376.3,4375.7,0.6448]
[1757508510527,0.4414,4375.8,4375.7,1.0938]
[1757508510825,0.6934,4375.8,4375.7,1.0938]
[1757508511024,0.6934,4375.8,4375.7,1.5151]
[1757508513029,1.1398,4375.8,4375.7,1.5151]
[1757508513324,1.4912,4375.7,4375.6,4.3016]
[1757508513531,0.8878,4375.7,4375.6,1.5151]
[1757508513925,0.8878,4375.7,4375.1,3.2078]
[1757508514131,0.4414,4375.2,4375.1,4.7229]
[1757508514827,1.4912,4375.2,4375.1,1.5151]
[1757508515629,0.4414,4375.2,4375.1,1.5151]
[1757508516032,0.252,4375.4,4375.1,0.8703]
[1757508516232,0.6934,4375.4,4375.3,1.5151]
[1757508517339,1.7432,4375.4,4375.3,1.5151]
[1757508517537,1.1398,4375.4,4375.3,1.5151]
[1757508518030,3.2078,4375.8,4375.7,0.8703]
[1757508518238,3.4588,4375.8,4375.7,1.5151]
[1757508518537,3.9002,4375.8,4375.7,1.5151]
[1757508518736,3.2078,4375.8,4375.7,1.5151]
[1757508519038,4.3466,4375.8,4375.7,1.5151]
[1757508519226,4.3466,4375.8,4375.6,0.6448]
[1757508519430,1.4912,4375.7,4375.6,0.6448]
[1757508519626,3.4588,4375.8,4375.7,0.6448]
[1757508519831,3.2078,4376.3,4376.0,0.2666]
[1757508520038,3.6492,4376.3,4376.2,1.5151]
[1757508520242,3.9002,4376.3,4376.2,1.5151]
[1757508520441,3.6492,4376.3,4376.2,1.5151]
[1757508520639,0.251,4376.4,4376.3,1.5151]
[1757508521335,1.7422,4376.4,4376.3,1.5151]
[1757508521542,1.4912,4376.1,4376.0,0.6448]
[1757508521741,1.7422,4376.1,4376.0,0.6448]
[1757508522039,1.7422,4376.1,4376.0,1.0938]
[1757508522236,1.1388,4376.1,4376.0,1.5151]
[1757508522435,1.1388,4376.1,4376.0,1.7817]
[1757508522840,0.6924,4376.1,4376.0,1.7817]
[1757508525845,1.7422,4376.1,4376.0,1.7817]
[1757508526251,1.7422,4376.1,4376.0,1.0938]
[1757508526449,0.8878,4375.7,4375.6,0.6448]
[1757508526749,1.7422,4375.7,4375.6,0.6448]
[1757508527848,1.7422,4375.7,4375.2,0.6017]
[1757508528149,1.7718,4375.7,4375.2,0.6017]
[1757508528442,1.7718,4375.7,4375.6,0.4142]
[1757508528638,1.7718,4375.7,4375.1,3.2078]
[1757508528842,1.7718,4375.7,4375.2,0.6017]
[1757508529038,0.8344,4375.3,4375.2,1.0159]
[1757508529241,1.4674,4375.3,4375.2,1.0159]
[1757508529442,1.0854,4375.3,4375.2,1.4311]
[1757508529939,1.7184,4375.3,4375.2,1.4311]
[1757508530947,1.7184,4375.3,4375.2,1.0159]
[1757508531539,1.0854,4375.3,4375.2,1.4311]
[1757508532748,3.2078,4375.9,4375.2,1.4311]
[1757508533051,1.7184,4375.8,4375.7,1.0159]
[1757508535439,1.4674,4375.8,4375.7,1.0159]
[1757508535637,1.7184,4375.8,4375.7,1.0159]
[1757508536151,1.7184,4375.8,4375.1,0.6017]
[1757508539246,0.53037314,4375.7,4375.1,0.6017]
[1757508539445,0.4049,4375.2,4375.1,1.4311]
[1757508539645,1.0844,4375.2,4375.1,1.4311]
[1757508540749,0.6549,4375.2,4375.1,1.4311]
[1757508541243,0.633,4375.1,4374.6,0.6017]
[1757508541449,1.4674,4374.7,4374.6,1.0159]
[1757508541648,0.8344,4374.7,4374.6,1.4311]
[1757508542557,1.4674,4374.7,4374.6,1.4311]
[1757508542856,0.8344,4374.7,4374.6,1.4311]
[1757508543058,3.6127,4375.3,4375.2,1.4311]
[1757508543257,4.39316324,4375.3,4375.2,1.4311]
[1757508543558,4.82266324,4375.3,4375.2,1.4311]
[1757508543754,5.45566324,4375.3,4375.2,1.4311]
[1757508543956,5.45566324,4375.3,4374.6,0.6017]
[1757508544256,0.8344,4374.7,4374.6,1.4311]
[1757508544458,1.0844,4374.7,4374.6,1.4311]
[1757508545454,1.7174,4374.7,4374.0,0.2666]
[1757508545658,1.7174,4374.7,4374.1,0.6017]
[1757508546355,1.946,4374.7,4373.7,3.2078]
[1757508546552,0.8344,4373.8,4373.7,4.2237]
[1757508546758,1.0844,4373.8,4373.7,1.0159]
[1757508546962,1.7174,4373.8,4373.7,1.4311]
[1757508547357,1.7174,4373.8,4373.1,0.6017]
[1757508547358,4.9252,4373.8,4373.1,0.6017]
[1757508547552,0.53039184,4373.7,4373.1,0.6017]
[1757508547755,1.4674,4373.2,4373.1,1.0159]
[1757508547955,1.7174,4373.2,4373.1,1.0159]
[1757508548350,0.8344,4373.0,4372.8,0.1737997]
[1757508548556,1.4674,4372.9,4372.8,0.7754997]
[1757508548756,1.4674,4372.9,4372.8,1.1896997]
[1757508549263,1.4674,4372.9,4372.8,0.1737997]
[1757508549567,5.69608,4372.9,4372.8,0.1737997]
[1757508549762,5.4674,4372.9,4372.8,0.1737997]
[1757508550066,6.22549213,4372.9,4371.6,0.6017]
[1757508550360,0.2486,4373.0,4370.5,0.266]
[1757508550361,0.8344,4371.7,4371.1,0.6017]
[1757508550563,0.4049,4371.2,4371.1,1.4311]
[1757508550864,1.0844,4371.2,4371.1,1.4311]
[1757508551056,1.7174,4371.2,4371.1,1.4311]
[1757508551365,0.883,4371.2,4370.6,0.6017]
[1757508551658,0.8344,4370.7,4370.1,3.2078]
[1757508551862,0.4049,4370.3,4370.2,1.4311]
[1757508552057,1.0844,4370.3,4370.2,1.4311]
[1757508552463,0.8344,4370.3,4370.2,1.4311]
[1757508553064,0.25,4370.3,4370.2,1.4311]
[1757508553262,3.6127,4371.1,4371.0,1.0954]
[1757508553562,3.8627,4371.1,4371.0,1.6971]
[1757508553958,3.4578,4371.1,4370.1,3.2078]
[1757508554266,3.4578,4371.1,4370.2,0.22879999]
[1757508554560,3.4578,4371.1,4370.1,3.2078]
[1757508554954,3.4578,4371.1,4369.6,3.2078]
[1757508555154,0.22886,4371.0,4369.6,3.2078]
[1757508555561,0.47882,4370.9,4369.6,3.2078]
[1757508555766,3.2078,4370.6,4369.6,3.2078]
[1757508555964,0.25,4370.5,4369.6,3.2078]
[1757508557278,0.25,4370.4,4369.6,3.2078]
[1757508557467,3.2078,4370.6,4369.6,3.2078]
[1757508557665,0.25,4370.5,4369.6,3.2078]
[1757508558058,3.2078,4370.6,4369.6,3.2078]
[1757508558261,0.25,4370.5,4369.6,3.2078]
[1757508558460,3.2078,4370.6,4369.6,3.2078]
[1757508558668,0.25,4370.5,4369.6,3.2078]
[1757508559165,0.25,4370.4,4369.6,3.2078]
[1757508559567,0.25,4370.4,4369.6,3.43663]
[1757508559770,0.25,4370.4,4369.6,3.2078]
[1757508559970,3.2078,4370.6,4369.6,3.2078]
[1757508560171,0.25,4370.5,4369.7,0.22883]
[1757508560470,0.25,4370.5,4369.6,3.2078]
[1757508560670,0.25,4370.4,4369.6,3.2078]
[1757508561070,3.2078,4370.6,4369.6,3.2078]
[1757508561274,0.25,4370.5,4369.6,3.2078]
[1757508561769,32.931,4372.3,4370.1,3.2078]
[1757508561770,3.2078,4371.2,4370.1,3.2078]
[1757508561963,0.25,4371.1,4370.1,3.2078]
[1757508562165,3.2078,4371.2,4370.1,3.2078]
[1757508562367,32.931,4372.3,4370.6,3.2078]
[1757508562368,0.25,4371.1,4370.6,3.2078]
[1757508562875,3.2078,4371.7,4370.6,3.2078]
[1757508563174,0.249,4371.6,4370.6,3.2078]
[1757508564867,0.249,4371.6,4370.0,3.2078]
[1757508565175,3.2078,4371.1,4370.0,3.2078]
[1757508565366,0.249,4371.0,4370.0,3.2078]
[1757508566472,3.2078,4370.4,4369.4,3.2078]
[1757508566672,0.249,4370.3,4369.4,3.2078]
[1757508567065,0.249,4370.3,4368.9,3.2078]
[1757508567066,3.2078,4369.9,4368.9,3.2078]
[1757508570576,0.249,4370.3,4368.4,3.2078]
[1757508570577,3.2078,4369.4,4368.4,3.2078]
[1757508570775,3.2078,4368.9,4367.9,3.2078]
[1757508570976,0.249,4368.8,4367.9,3.2078]
[1757508571269,3.2078,4368.9,4368.0,0.22892]
[1757508571474,3.2078,4369.4,4368.4,3.2078]
[1757508571779,0.249,4369.8,4368.4,3.2078]
[1757508571972,0.249,4369.7,4368.5,0.22886]
[1757508572173,0.249,4369.7,4368.4,3.2078]
[1757508572372,0.249,4369.7,4368.5,0.22888]
[1757508572671,3.2078,4369.9,4368.5,0.22888]
[1757508572872,0.249,4369.8,4368.4,3.2078]
[1757508573068,0.249,4369.8,4368.5,0.22888]
[1757508573274,3.2078,4369.2,4368.4,3.2078]
[1757508573463,0.249,4369.1,4367.8,3.2078]
[1757508574172,0.249,4369.0,4367.8,3.2078]
[1757508574375,3.2078,4368.7,4367.8,3.2078]
[1757508574775,0.249,4368.6,4367.8,3.2078]
[1757508574976,0.249,4368.5,4367.8,3.2078]
[1757508575476,0.249,4368.4,4367.8,3.2078]
[1757508575879,3.2078,4368.7,4367.8,3.2078]
[1757508576074,0.249,4368.6,4367.8,3.43672]
[1757508576276,3.2078,4369.5,4368.5,3.2078]
[1757508576574,0.78049744,4369.4,4368.5,3.2078]
[1757508576776,0.249,4369.4,4368.6,0.22888999]
[1757508577173,3.2078,4369.5,4368.6,0.22888999]
[1757508577373,3.2078,4369.5,4368.7,0.22888]
[1757508577571,0.249,4369.6,4368.6,0.22888999]
[1757508577778,0.53205283,4369.5,4368.6,3.20986192]
[1757508577979,0.249,4369.6,4368.7,0.22888]
[1757508578173,0.53205324,4369.5,4368.6,0.22888]
[1757508578370,0.53205324,4369.4,4368.6,0.22888]
[1757508578568,0.53205324,4369.3,4368.5,3.2078]
[1757508578780,0.53259901,4369.2,4368.5,3.2078]
[1757508578980,3.2078,4369.5,4368.5,3.2078]
[1757508579183,0.53262684,4369.4,4368.5,3.2078]
[1757508579477,0.53262684,4369.3,4368.6,0.22888999]
[1757508579779,0.53262684,4369.2,4368.6,0.22888999]
[1757508579979,0.53262684,4369.1,4368.5,3.2078]
[1757508580185,0.53262684,4369.0,4368.5,3.2078]
[1757508580377,0.53262684,4368.9,4368.5,3.2078]
[1757508580578,0.53262684,4368.8,4368.5,3.2078]
[1757508580779,3.2078,4369.5,4368.5,3.2078]
[1757508580975,0.53317779,4369.4,4368.5,3.2078]
[1757508581176,0.53317779,4369.3,4368.5,3.2078]
[1757508581378,3.2078,4369.5,4368.5,3.2078]
[1757508581379,0.53317779,4369.2,4368.5,3.2078]
[1757508581574,3.2078,4369.0,4368.0,3.2078]
[1757508581774,0.78217779,4368.9,4368.0,3.2078]
[1757508581981,0.53317779,4368.8,4368.0,3.2078]
[1757508582380,3.2078,4368.5,4367.5,3.2078]
[1757508582576,0.53317779,4368.4,4367.5,3.2078]
[1757508582776,0.249,4368.3,4367.5,3.2078]
[1757508582978,0.78217779,4368.2,4367.5,3.43674]
[1757508583175,0.53317779,4368.1,4367.5,3.43674]
[1757508583383,0.53317779,4368.1,4367.5,3.2078]
[1757508583873,3.2078,4368.5,4367.5,3.43675]
[1757508583874,0.53317779,4368.0,4367.5,3.43675]
[1757508584079,0.249,4368.4,4367.5,3.2078]
[1757508584280,3.2078,4369.0,4367.5,3.2078]
[1757508584281,0.53314462,4368.3,4368.1,3.2078]
[1757508584478,0.249,4368.8,4368.1,3.2078]
[1757508584682,0.533091,4368.7,4368.1,3.2078]
[1757508584988,0.533091,4368.6,4368.1,3.2078]
[1757508585283,3.2078,4368.3,4367.4,3.2078]
[1757508585780,3.2078,4368.3,4367.5,0.22895]
[1757508585984,3.2078,4368.3,4367.4,3.4568]
[1757508586387,0.53304286,4368.2,4367.4,3.4568]
[1757508586587,0.53304286,4368.1,4367.4,3.4568]
[1757508587191,0.78204286,4368.1,4368.0,0.8485]
[1757508587982,0.53304286,4368.1,4368.0,0.8485]
[1757508588182,3.2078,4368.3,4368.0,0.2353]
[1757508588388,0.53293184,4368.2,4368.0,0.2353]
[1757508588692,0.53293184,4368.1,4368.0,0.8485]
[1757508588885,0.53293184,4368.2,4368.0,0.2353]
[1757508589481,0.53293184,4368.2,4368.1,0.6132]
[1757508589689,0.78193184,4368.2,4368.1,0.6132]
[1757508589880,0.53293184,4368.2,4368.1,0.6132]
[1757508591283,3.2078,4368.3,4368.1,0.6132]
[1757508591687,3.2078,4368.3,4368.0,0.2353]
[1757508591887,0.53287967,4368.2,4368.1,0.6132]
[1757508592487,0.78087967,4368.2,4368.1,0.6132]
[1757508592683,0.53287967,4368.2,4368.1,0.6132]
[1757508592990,0.78087967,4368.2,4368.1,0.6132]
[1757508593394,1.40287967,4368.2,4367.6,0.6132]
[1757508593683,0.53287967,4368.1,4367.6,0.6132]
[1757508593890,1.15487967,4368.1,4368.0,0.6132]
[1757508594089,1.15487967,4368.1,4367.5,0.2353]
[1757508594284,3.2078,4367.6,4367.5,0.2353]
[1757508594484,3.74191522,4367.6,4367.5,0.8485]
[1757508594890,4.36391522,4367.6,4367.5,0.6132]
[1757508595483,3.74191522,4367.6,4367.5,0.8485]
[1757508595688,4.36391522,4367.6,4367.5,0.6132]
[1757508595881,4.36391522,4367.6,4367.1,0.6132]
[1757508596085,0.622,4367.4,4366.9,3.2078]
[1757508596286,0.78259312,4367.3,4366.9,3.2078]
[1757508596489,0.248,4367.3,4366.9,3.2078]
[1757508596989,0.248,4367.3,4366.4,3.2078]
[1757508597195,0.53459465,4367.2,4366.4,3.2078]
[1757508597392,0.53457212,4367.1,4366.4,3.2078]
[1757508597691,0.53459942,4367.0,4366.4,3.2078]
[1757508597901,0.78259942,4366.9,4366.4,3.2078]
[1757508598088,0.53459942,4366.8,4366.4,3.2078]
[1757508598287,0.248,4366.9,4366.4,3.2078]
[1757508600385,3.2078,4367.1,4366.4,3.43681]
[1757508600593,3.2078,4367.1,4366.4,3.2078]
[1757508600594,0.53446202,4367.0,4366.4,3.2078]
[1757508600891,3.2078,4367.6,4366.4,3.4558]
[1757508601091,0.78241265,4367.5,4366.9,3.2078]
[1757508601291,0.248,4367.5,4366.9,3.2078]
[1757508601799,3.2078,4367.9,4366.9,3.2078]
[1757508602096,3.4558,4367.9,4366.9,3.2078]
[1757508602595,3.2078,4367.4,4366.4,0.248]
[1757508602799,0.78246538,4367.3,4366.3,3.4558]
[1757508603098,0.248,4367.3,4366.3,3.2078]
[1757508603293,0.53445418,4367.2,4366.3,3.2078]
[1757508603594,3.2078,4366.9,4366.3,3.2078]
[1757508604103,3.4558,4366.9,4366.3,3.2078]
[1757508604400,0.248,4367.3,4366.4,3.20366164]
[1757508604599,0.248,4367.6,4366.5,0.248]
[1757508604791,3.2078,4367.7,4366.5,0.248]
[1757508605093,3.2078,4367.7,4366.6,3.25953591]
[1757508605294,3.2078,4368.2,4366.8,3.2078]
[1757508605591,3.2078,4368.2,4366.9,3.27855591]
[1757508605801,3.2078,4368.2,4367.3,3.2078]
[1757508606096,3.2078,4368.2,4367.4,3.26826575]
[1757508606699,3.2078,4368.9,4367.8,3.2078]
[1757508606888,32.983,4370.1,4367.8,3.2078]
[1757508606889,0.248,4369.2,4367.9,0.248]
[1757508607089,3.2078,4369.9,4368.5,3.61976]
[1757508607293,3.2078,4370.4,4369.0,3.2078]
[1757508607692,3.2078,4369.8,4368.9,0.248]
[1757508607897,3.2078,4369.8,4368.9,0.215]
[1757508608486,3.2078,4369.8,4368.9,3.4228]
[1757508608688,3.2078,4369.8,4369.0,2.92142927]
[1757508609200,3.2078,4370.7,4369.4,3.2078]
[1757508609391,0.248,4370.4,4369.4,3.4558]
[1757508609588,3.2078,4370.7,4369.6,0.41186]
[1757508609796,0.248,4371.1,4369.9,3.2078]
[1757508609992,0.248,4371.1,4370.0,0.248]
[1757508610305,0.248,4371.1,4370.0,3.28604215]
[1757508610493,3.2078,4371.2,4370.0,3.28604215]
[1757508610794,0.248,4371.1,4370.0,3.28604215]
[1757508611401,0.248,4371.1,4370.0,3.69786215]
[1757508611699,3.2078,4371.2,4370.2,0.4118]
[1757508611893,3.4558,4371.7,4370.5,3.2078]
[1757508612405,3.4558,4371.7,4370.6,0.248]
[1757508612589,3.2078,4371.1,4370.4,0.248]
[1757508615101,3.2078,4371.6,4370.4,0.248]
[1757508615304,32.979,4372.4,4370.5,6.16370137]
[1757508615305,3.2078,4371.1,4370.5,6.16370137]
[1757508615498,3.2078,4371.1,4370.5,3.2078]
[1757508617205,3.2078,4371.1,4370.4,0.248]
[1757508617405,0.248,4371.5,4370.6,2.97424493]
[1757508617700,0.248,4371.5,4370.5,6.18204493]
[1757508618003,0.248,4371.5,4370.5,3.2078]
[1757508618202,0.248,4371.5,4370.6,2.98642285]
[1757508618399,0.248,4371.5,4370.6,3.23342285]
[1757508618601,3.2078,4371.8,4371.1,0.41172]
[1757508618798,3.2078,4371.8,4371.2,0.247]
[1757508619404,3.2078,4371.8,4371.0,3.2078]
[1757508619806,3.2078,4371.8,4371.1,0.247]
[1757508620199,3.2078,4371.8,4371.0,3.2078]
[1757508620510,3.2078,4371.8,4371.1,0.247]
[1757508621600,3.2078,4371.8,4370.5,3.2078]
[1757508621809,3.2078,4371.3,4370.5,3.2078]
[1757508622910,3.2078,4371.3,4370.4,0.247]
[1757508623804,3.2078,4371.3,4370.0,3.2078]
[1757508624000,0.2288,4371.2,4370.0,3.2078]
[1757508624211,3.2078,4370.5,4369.1,0.41191]
[1757508624405,3.2078,4370.0,4369.2,0.247]
[1757508624608,3.2078,4370.0,4369.2,3.19310352]
[1757508624817,3.2078,4370.0,4369.2,0.247]
[1757508625000,3.2078,4370.0,4369.2,0.6589]
[1757508625200,3.2078,4370.0,4368.9,3.2078]
[1757508625503,3.4548,4370.0,4368.9,3.2078]
[1757508626404,0.22886,4369.9,4368.9,3.2078]
[1757508626809,0.22886,4369.8,4368.9,3.2078]
[1757508627012,3.2078,4369.0,4368.3,3.2078]
[1757508627407,3.2078,4369.0,4368.0,0.247]
[1757508627707,3.2078,4368.4,4367.7,3.2078]
[1757508628911,0.22894,4368.3,4367.1,0.247]
[1757508629113,3.2078,4367.9,4366.5,3.2078]
[1757508629303,3.2078,4367.4,4366.1,0.247]
[1757508629503,0.247,4367.3,4366.1,0.247]
[1757508630010,3.2078,4366.9,4366.1,0.247]
[1757508630214,3.4548,4366.9,4366.1,0.247]
[1757508630408,3.4548,4366.9,4366.0,3.2078]
[1757508631712,3.2078,4366.9,4366.0,3.2078]
[1757508632516,3.2078,4366.9,4366.2,0.41218]
[1757508633014,0.247,4367.2,4366.5,3.2078]
[1757508633015,3.4548,4367.2,4366.5,3.2078]
[1757508634609,3.2078,4367.2,4366.5,3.2078]
[1757508636806,0.247,4367.1,4366.5,3.2078]
[1757508637420,3.2078,4367.8,4366.6,0.65915]
[1757508637625,3.2078,4367.8,4366.7,0.41214]
[1757508637812,0.247,4367.7,4366.7,0.22898]
[1757508638006,0.247,4367.7,4366.6,3.69970794]
[1757508638318,0.247,4367.7,4366.7,0.41214]
[1757508638514,3.2078,4367.8,4366.6,3.28755794]
[1757508638813,3.4548,4367.8,4366.6,0.247]
[1757508639118,3.4548,4367.8,4366.7,0.247]
[1757508640018,3.2078,4367.3,4366.7,0.247]
[1757508641119,0.247,4367.4,4366.7,0.247]
[1757508641314,0.247,4367.4,4366.7,0.65914]
[1757508642022,0.247,4367.5,4366.8,0.41213]
[1757508642523,0.247,4367.6,4366.7,0.65914]
[1757508643123,0.247,4367.6,4366.8,0.41213]
[1757508643318,0.247,4367.6,4366.7,0.247]
[1757508644023,3.2078,4367.3,4366.7,0.247]
[1757508644525,0.247,4367.6,4366.7,0.65914]
[1757508645023,0.247,4367.6,4366.7,0.247]
[1757508645521,3.2078,4369.1,4367.1,3.2078]
[1757508645722,3.2078,4368.5,4367.2,0.247]
[1757508645915,3.2078,4368.5,4367.7,0.41204]
[1757508646116,3.2078,4369.1,4367.7,0.65904]
[1757508646320,3.4548,4369.1,4367.8,2.93674488]
[1757508646520,3.4548,4369.1,4367.9,0.41202]
[1757508646719,3.2078,4369.1,4368.2,0.41199]
[1757508646923,3.2078,4369.1,4368.5,0.41197]
[1757508647121,0.247,4369.4,4368.6,3.2078]
[1757508647421,3.4548,4369.6,4368.6,3.61976]
[1757508647616,3.4548,4369.6,4368.6,3.2078]
[1757508648020,3.4548,4369.6,4368.6,3.61976]
[1757508648429,3.4548,4369.6,4368.6,3.2078]
[1757508649719,3.2078,4369.6,4368.7,0.247]
[1757508649920,0.247,4370.4,4369.3,0.41189]
[1757508650122,3.2078,4370.0,4369.2,0.247]
[1757508650420,3.2078,4370.0,4369.2,0.6589]
[1757508650614,3.2078,4370.0,4369.2,0.247]
[1757508651022,0.247,4369.9,4368.6,3.2078]
[1757508651220,3.2078,4369.4,4368.4,0.247]
[1757508651928,3.2078,4369.4,4368.1,3.2078]
[1757508651929,3.4548,4369.4,4368.1,3.2078]
[1757508652119,3.2078,4368.9,4367.7,0.246]
[1757508652324,0.246,4368.8,4367.7,0.246]
[1757508652725,0.246,4368.8,4367.7,0.65804]
[1757508653021,3.2078,4368.9,4367.7,0.41204]
[1757508653333,3.2078,4368.9,4367.8,0.246]
[1757508653523,3.2078,4369.4,4368.2,0.412]
[1757508653721,3.2078,4369.4,4368.2,3.2078]
[1757508654124,3.2078,4368.9,4368.2,3.2078]
[1757508654324,3.4538,4368.9,4368.2,3.2078]
[1757508654529,4.0,4368.8,4367.7,3.2078]